fUST/lending_fUST_20260101
["ID","MTS","AMOUNT","RATE_DAILY","PERIOD"]
[400248926,1767217846799,-1430.143678,0.0002876,7]
[400248927,1767217846809,-151.0,0.0002876,7]
[400248928,1767217846819,-1430.143678,0.0002876,7]
[400248929,1767217846828,-234.643774,0.0002876,7]
[400248930,1767217846836,-242.224845,0.0002876,7]
[400248931,1767217846846,-242.224845,0.0002876,7]
[400248932,1767217846855,-242.224845,0.0002876,7]
[400248933,1767217846864,-242.224845,0.0002876,7]
[400248934,1767217846874,-1559.059603,0.0002876,7]
[400248935,1767217846883,-1559.059603,0.0002876,7]
[400248936,1767217846893,-1559.059603,0.0002876,7]
[400248937,1767217846905,-1559.059603,0.0002876,7]
[400248938,1767217846915,-151.0,0.0002876,7]
[400248939,1767217846924,-1265.7460079,0.00028762,2]
[400248940,1767217846934,-368.0,0.00028775,7]
[400248941,1767217846943,-151.0,0.00028795,7]
[400248942,1767217846954,-151.0,0.00028795,7]
[400248943,1767217846963,-151.0,0.00028795,7]
[400248944,1767217846974,-151.0,0.00028795,7]
[400248945,1767217846983,-323.507289,0.00028795,7]
[400248946,1767217846993,-323.507289,0.00028795,7]
[400248947,1767217847003,-323.507289,0.00028795,7]
[400248948,1767217847012,-389.397028,0.00028795,7]
[400248949,1767217847022,-323.507289,0.00028795,7]
[400248950,1767217847031,-173.074121,0.00028795,7]
[400248951,1767217847041,-389.397028,0.00028795,7]
[400248952,1767217847050,-389.397028,0.00028795,7]
[400248953,1767217847061,-389.397028,0.00028795,7]
[400248954,1767217847071,-372.889096,0.00028795,7]
[400248955,1767217847081,-372.889096,0.00028795,7]
[400248956,1767217847090,-372.889096,0.00028795,7]
[400248957,1767217847101,-372.889096,0.00028795,7]
[400248958,1767217847110,-1264.830438,0.00028795,7]
[400248959,1767217847120,-151.0,0.00028795,7]
[400248960,1767217847129,-1264.830438,0.00028795,7]
[400248961,1767217847139,-1264.830438,0.00028795,7]
[400248962,1767217847148,-579.465896,0.00028795,7]
[400248963,1767217847158,-1264.830438,0.00028795,7]
[400248964,1767217847168,-579.465896,0.00028795,7]
[400248965,1767217847178,-579.465896,0.00028795,7]
[400248966,1767217847188,-579.465896,0.00028795,7]
[400248967,1767217847197,-351.462962,0.00028795,7]
[400248968,1767217847206,-351.462962,0.00028795,7]
[400248969,1767217847216,-351.462962,0.00028795,7]
[400248970,1767217847225,-351.462962,0.00028795,7]
[400248971,1767217847235,-6464.62555377,0.00028795,17]
[400248972,1767217847245,-172.34644729,0.000288,7]
[400248973,1767217847255,-368.0,0.00028834,2]
[400248974,1767217847265,-151.0,0.00028851,7]
[400248975,1767217847274,-151.0,0.00028851,7]
[400248976,1767217847284,-151.0,0.00028851,7]
[400248977,1767217847294,-221.765393,0.00028851,7]
[400248978,1767217847303,-151.0,0.00028851,7]
[400248979,1767217847313,-160.429789,0.00028851,7]
[400248980,1767217847322,-169.466222,0.00028851,7]
[400248981,1767217847331,-169.466222,0.00028851,7]
[400248982,1767217847341,-169.466222,0.00028851,7]
[400248983,1767217847350,-169.466222,0.00028851,7]
[400248984,1767217847360,-480.2163596,0.00028885,2]
[400248985,1767217847370,-827.96,0.000289,14]
[400248986,1767217847380,-3147.76375777,0.00028924,2]
[400248987,1767217847389,-160.0,0.00028996,4]
[400248988,1767217847398,-889.58046621,0.00029,2]
[400248989,1767217847408,-2406.6075983,0.00029,10]
[400248990,1767217847418,-176.03,0.00029,7]
[400248991,1767217847427,-1041.66666667,0.00029,30]
[400248992,1767217847437,-421.0,0.00029016,2]
[400248993,1767217847447,-151.0,0.00029031,3]
[400248994,1767217847456,-421.0,0.00029091,7]
[400248995,1767217847465,-368.0,0.00029197,7]
[400248996,1767217847475,-8423.69,0.000292,2]
[400248997,1767217847484,-368.0,0.00029251,2]
[400248998,1767217847494,-368.0,0.00029263,2]
[400248999,1767217847504,-889.5916583,0.00029285,2]
[400249000,1767217847514,-422.0,0.00029381,2]
[400249001,1767217847523,-152.26504483,0.00029388,2]
[400249002,1767217847533,-797.0,0.00029426,7]
[400249003,1767217847543,-422.6347024,0.000295,120]
[400249004,1767217847552,-154.33,0.000295,2]
[400249005,1767217847562,-171.0,0.00029589,35]
[400249006,1767217847572,-151.0,0.000296,7]
[400249007,1767217847582,-151.0,0.000296,7]
[400249008,1767217847591,-151.0,0.000296,7]
[400249009,1767217847601,-151.0,0.000296,7]
[400249010,1767217847610,-151.0,0.000296,7]
[400249011,1767217847620,-151.0,0.000296,7]
[400249012,1767217847629,-151.0,0.000296,7]
[400249013,1767217847639,-151.0,0.000296,7]
[400249014,1767217847649,-151.0,0.000296,7]
[400249015,1767217847659,-151.0,0.000296,7]
[400249016,1767217847668,-151.0,0.000296,7]
[400249017,1767217847677,-151.0,0.000296,7]
[400249018,1767217847687,-178.917895,0.000296,7]
[400249019,1767217847697,-154.840631,0.000296,7]
[400249020,1767217847707,-397.15728536,0.00029674,2]
[400249021,1767217847716,-160.0,0.00029761,5]
[400249022,1767217847726,-5000.0,0.00029871,2]
[400249023,1767217847736,-179.87408814,0.00029879,4]
[400249024,1767217847745,-1200.20317365,0.0003,2]
[400249025,1767217847755,-10188.87347094,0.0003,7]
[400249026,1767217847764,-151.0,0.0003,7]
[400249027,1767217847774,-151.0,0.0003,7]
[400249028,1767217847783,-151.0,0.0003,7]
[400249029,1767217847793,-184.0,0.0003,14]
[400249030,1767217847802,-166.0,0.0003,14]
[400249031,1767217847812,-368.0,0.0003,14]
[400249032,1767217847821,-151.0,0.0003,7]
[400249033,1767217847831,-151.0,0.0003,7]
[400249034,1767217847841,-754.40778,0.0003,7]
[400249035,1767217847851,-151.0,0.0003,7]
[400249036,1767217847862,-754.40778,0.0003,7]
[400249037,1767217847871,-754.40778,0.0003,7]
[400249038,1767217847881,-754.40778,0.0003,7]
[400249039,1767217847891,-198.4947291,0.00030037,2]
[400249040,1767217847902,-5051.80608518,0.000301,120]
[400249041,1767217847912,-500.0,0.00030264,7]
[400249042,1767217847922,-3147.76375777,0.00030288,2]
[400249043,1767217847932,-827.96,0.000303,14]
[400249044,1767217847942,-1500.0,0.00030317,7]
[400249045,1767217847952,-1500.0,0.00030334,7]
[400249046,1767217847962,-1500.0,0.0003039,7]
[400249047,1767217847972,-368.0,0.00030411,14]
[400249048,1767217847982,-1500.0,0.00030436,7]
[400249049,1767217847992,-1500.0,0.00030481,7]
[400249050,1767217848001,-1500.0,0.00030495,7]
[400249051,1767217848011,-1500.0,0.00030512,7]
[400249052,1767217848021,-160.0,0.00030525,6]
[400249053,1767217848031,-1500.0,0.00030546,7]
[400249054,1767217848041,-151.0,0.00030561,31]
[400249055,1767217848050,-151.0,0.00030561,31]
[400249056,1767217848060,-151.0,0.00030561,31]
[400249057,1767217848070,-163.988889,0.00030561,31]
[400249058,1767217848079,-163.988889,0.00030561,31]
[400249059,1767217848089,-163.988889,0.00030561,31]
[400249060,1767217848100,-163.988889,0.00030561,31]
[400249061,1767217848110,-151.0,0.00030561,31]
[400249062,1767217848119,-151.0,0.00030561,31]
[400249063,1767217848129,-151.0,0.00030561,31]
[400249064,1767217848138,-151.0,0.00030561,31]
[400249065,1767217848148,-151.0,0.00030561,31]
[400249066,1767217848157,-158.892051,0.00030561,31]
[400249067,1767217848167,-151.0,0.00030561,31]
[400249068,1767217848177,-158.892051,0.00030561,31]
[400249069,1767217848186,-158.892051,0.00030561,31]
[400249070,1767217848196,-158.892051,0.00030561,31]
[400249071,1767217848206,-151.0,0.00030561,31]
[400249072,1767217848215,-151.0,0.00030561,31]
[400249073,1767217848225,-151.0,0.00030561,31]
[400249074,1767217848234,-185.00562,0.00030561,31]
[400249075,1767217848244,-1500.0,0.00030681,7]
[400249076,1767217848253,-8423.69,0.000307,2]
[400249077,1767217848264,-197.835449,0.000307,31]
[400249078,1767217848273,-197.835449,0.000307,31]
[400249079,1767217848283,-197.835449,0.000307,31]
[400249080,1767217848292,-197.835449,0.000307,31]
[400249081,1767217848302,-151.0,0.000307,7]
[400249082,1767217848312,-151.0,0.000307,28]
[400249083,1767217848322,-151.0,0.000307,31]
[400249084,1767217848331,-174.021313,0.000307,31]
[400249085,1767217848341,-151.0,0.000307,31]
[400249086,1767217848350,-174.021313,0.000307,31]
[400249087,1767217848360,-174.021313,0.000307,31]
[400249089,1767217848370,-174.021313,0.000307,31]
[400249091,1767217848380,-151.0,0.000307,31]
[400249092,1767217848390,-297.109657,0.000307,31]
[400249094,1767217848399,-151.0,0.00030705,4]
[400249096,1767217848408,-2000.0,0.00030833,7]
[400249097,1767217848417,-1500.0,0.00030862,7]
[400249098,1767217848427,-151.0,0.00030943,31]
[400249099,1767217848436,-151.0,0.00030943,31]
[400249100,1767217848445,-151.0,0.00030943,31]
[400249101,1767217848455,-1888.298719,0.00030943,31]
[400249102,1767217848464,-151.0,0.00030943,31]
[400249103,1767217848475,-1888.298719,0.00030943,31]
[400249104,1767217848484,-151.0,0.00030943,31]
[400249105,1767217848494,-151.0,0.00030943,31]
[400249106,1767217848503,-1888.298719,0.00030943,31]
[400249107,1767217848514,-151.0,0.00030943,31]
[400249108,1767217848524,-151.0,0.00030943,31]
[400249109,1767217848533,-1888.298719,0.00030943,31]
[400249110,1767217848543,-237.965495,0.00030943,31]
[400249111,1767217848552,-237.965495,0.00030943,31]
[400249112,1767217848562,-237.965495,0.00030943,31]
[400249113,1767217848571,-237.965495,0.00030943,31]
[400249114,1767217848581,-1062.636171,0.00030943,31]
[400249115,1767217848590,-1062.636171,0.00030943,31]
[400249116,1767217848599,-1062.636171,0.00030943,31]
[400249117,1767217848608,-1062.636171,0.00030943,31]
[400249118,1767217848618,-916.36,0.00030958,30]
[400249119,1767217848627,-1500.0,0.00030963,7]
[400249120,1767217848637,-1500.0,0.00030973,7]
[400249121,1767217848647,-500.0,0.00030991,7]
[400249122,1767217848752,-162.33069799,0.00031,120]
[400249123,1767217848761,-183.42010434,0.00031,120]
[400249124,1767217848771,-193.78459303,0.00031,120]
[400249125,1767217848780,-178.8674121,0.00031,120]
[400249126,1767217848789,-220.84246738,0.00031,120]
[400249127,1767217848798,-260.78391882,0.00031,120]
[400249128,1767217848807,-161.01318651,0.00031,120]
[400249129,1767217848816,-198.07485528,0.00031,120]
[400249130,1767217848825,-206.24088796,0.00031,120]
[400249131,1767217848835,-309.65070131,0.00031,120]
[400249132,1767217848844,-1430.86618739,0.00031,120]
[400249133,1767217848853,-162.37843672,0.00031,120]
[400249134,1767217848863,-183.49170094,0.00031,120]
[400249135,1767217848872,-500.0,0.00031053,7]
[400249136,1767217848881,-500.0,0.00031065,7]
[400249137,1767217848891,-154.33,0.000311,2]
[400249138,1767217848902,-152.548448,0.00031127,31]
[400249139,1767217848911,-152.548448,0.00031127,31]
[400249140,1767217848920,-152.548448,0.00031127,31]
[400249141,1767217848929,-152.548448,0.00031127,31]
[400249142,1767217848939,-500.0,0.00031174,7]
[400249143,1767217848948,-1500.0,0.00031277,7]
[400249144,1767217848958,-160.0,0.00031289,7]
[400249145,1767217848967,-1500.0,0.00031395,7]
[400249146,1767217848979,-500.0,0.00031443,7]
[400249147,1767217848988,-1500.0,0.00031459,7]
[400249148,1767217848997,-151.0,0.00031502,31]
[400249149,1767217849006,-151.0,0.00031502,31]
[400249150,1767217849015,-171.20934,0.00031502,31]
[400249151,1767217849025,-151.0,0.00031502,31]
[400249152,1767217849034,-151.0,0.00031502,31]
[400249153,1767217849043,-195.765928,0.00031502,31]
[400249154,1767217849052,-151.0,0.00031502,31]
[400249155,1767217849062,-151.0,0.00031502,31]
[400249156,1767217849071,-151.0,0.00031502,31]
[400249157,1767217849080,-24425.5686256,0.00031502,10]
[400249158,1767217849089,-916.36,0.00031506,31]
[400249159,1767217849099,-1500.0,0.00031523,7]
[400249160,1767217849108,-1500.0,0.00031597,7]
[400249161,1767217849117,-1041.66666667,0.000316,10]
[400249162,1767217849126,-1265.7460079,0.00031608,2]
[400249163,1767217849134,-166.0,0.00031644,14]
[400249164,1767217849144,-368.0,0.00031644,14]
[400249165,1767217849153,-3147.76375777,0.00031652,2]
[400249166,1767217849163,-424.44290038,0.00031674,2]
[400249167,1767217849172,-827.96,0.000318,14]
[400249168,1767217849181,-1500.0,0.00031815,7]
[400249169,1767217849190,-480.2163596,0.00031854,2]
[400249170,1767217849200,-500.0,0.00031856,7]
[400249171,1767217849209,-1500.0,0.00031864,7]
[400249172,1767217849218,-500.0,0.00031867,7]
[400249173,1767217849227,-14608.3603217,0.00031896,2]
[400249174,1767217849236,-162.33069799,0.000319,120]
[400249175,1767217849245,-183.42010434,0.000319,120]
[400249176,1767217849255,-178.8674121,0.000319,120]
[400249177,1767217849264,-220.84246738,0.000319,120]
[400249178,1767217849274,-193.78459303,0.000319,120]
[400249179,1767217849283,-260.78391882,0.000319,120]
[400249180,1767217849292,-161.01318651,0.000319,120]
[400249181,1767217849302,-198.07485528,0.000319,120]
[400249182,1767217849311,-1430.86618739,0.000319,120]
[400249183,1767217849320,-162.37843672,0.000319,120]
[400249184,1767217849330,-183.49170094,0.000319,120]
[400249185,1767217849339,-1500.0,0.00031941,7]
[400249186,1767217849348,-1500.0,0.00031999,7]
[400249187,1767217849357,-26677.68431593,0.00032,120]
[400249188,1767217849366,-1041.66666667,0.00032,120]
[400249189,1767217849375,-151.0,0.00032,31]
[400249190,1767217849385,-151.0,0.00032,31]
[400249191,1767217849394,-151.0,0.00032,31]
[400249192,1767217849403,-151.0,0.00032,31]
[400249193,1767217849412,-151.0,0.00032,31]
[400249194,1767217849421,-151.0,0.00032,31]
[400249195,1767217849430,-151.0,0.00032,31]
[400249196,1767217849439,-151.0,0.00032,31]
[400249197,1767217849448,-151.0,0.00032,31]
[400249198,1767217849457,-151.0,0.00032,31]
[400249199,1767217849467,-160.0,0.00032053,8]
[400249200,1767217849476,-916.36,0.00032054,32]
[400249201,1767217849486,-1500.0,0.00032059,7]
[400249202,1767217849495,-1500.0,0.00032077,7]
[400249203,1767217849507,-500.0,0.00032088,7]
[400249204,1767217849516,-1500.0,0.00032094,7]
[400249205,1767217849525,-8423.69,0.000321,2]
[400249206,1767217849535,-1500.0,0.0003212,7]
[400249207,1767217849544,-500.0,0.00032357,7]
[400249208,1767217849553,-1226.0,0.00032367,30]
[400249209,1767217849562,-18560.0,0.00032367,30]
[400249210,1767217849571,-819.5,0.00032367,30]
[400249211,1767217849580,-151.0,0.00032379,5]
[400249212,1767217849589,-300.34133,0.00032379,31]
[400249213,1767217849599,-440.924061,0.00032379,31]
[400249214,1767217849608,-440.924061,0.00032379,31]
[400249215,1767217849618,-440.924061,0.00032379,31]
[400249216,1767217849627,-440.924061,0.00032379,31]
[400249217,1767217849637,-151.000017,0.00032379,31]
[400249218,1767217849646,-151.0,0.00032379,31]
[400249219,1767217849655,-151.0,0.00032379,31]
[400249220,1767217849664,-612.575308,0.00032379,31]
[400249221,1767217849673,-151.0,0.00032379,31]
[400249222,1767217849683,-612.575308,0.00032379,31]
[400249223,1767217849692,-612.575308,0.00032379,31]
[400249224,1767217849701,-612.575308,0.00032379,31]
[400249225,1767217849710,-151.0,0.00032379,31]
[400249226,1767217849719,-151.0,0.00032379,31]
[400249227,1767217849728,-1500.0,0.00032382,7]
[400249228,1767217849737,-242.47185193,0.00032385,7]
[400249229,1767217849746,-1500.0,0.00032409,7]
[400249230,1767217849756,-500.0,0.00032416,7]
[400249231,1767217849766,-500.0,0.00032419,7]
[400249232,1767217849775,-2918.46508754,0.0003245,7]
[400249233,1767217849784,-500.0,0.00032555,7]
[400249234,1767217849794,-916.36,0.00032602,33]
[400249235,1767217849803,-2000.0,0.00032666,7]
[400249236,1767217849812,-805.861522,0.00032696,31]
[400249237,1767217849821,-805.861522,0.00032696,31]
[400249238,1767217849831,-805.861522,0.00032696,31]
[400249239,1767217849840,-151.0,0.00032696,31]
[400249240,1767217849850,-151.0,0.00032696,31]
[400249241,1767217849860,-805.861522,0.00032696,31]
[400249242,1767217849869,-151.0,0.00032696,31]
[400249243,1767217849879,-1430.143678,0.00032696,31]
[400249244,1767217849888,-1430.143678,0.00032696,31]
[400249245,1767217849899,-151.0,0.00032696,31]
[400249246,1767217849909,-1430.143678,0.00032696,31]
[400249247,1767217849919,-151.0,0.00032696,31]
[400249248,1767217849928,-1430.143678,0.00032696,31]
[400249249,1767217849937,-242.224845,0.00032696,31]
[400249250,1767217849947,-242.224845,0.00032696,31]
[400249251,1767217849956,-242.224845,0.00032696,31]
[400249252,1767217849966,-242.224845,0.00032696,31]
[400249253,1767217849975,-1559.059603,0.00032696,31]
[400249254,1767217849985,-1559.059603,0.00032696,31]
[400249255,1767217849994,-1559.059603,0.00032696,31]
[400249256,1767217850004,-1559.059603,0.00032696,31]
[400249257,1767217850013,-151.0,0.00032696,31]
[400249258,1767217850023,-154.33,0.000327,2]
[400249259,1767217850033,-776.0,0.000327,2]
[400249260,1767217850043,-10000.0,0.00032777,2]
[400249261,1767217850052,-160.0,0.00032818,9]
[400249262,1767217850062,-801.78,0.00032877,10]
[400249263,1767217850071,-156.0,0.00032877,56]
[400249264,1767217850081,-500.0,0.00032877,5]
[400249265,1767217850091,-150.0,0.00032877,5]
[400249266,1767217850100,-162.33069799,0.000329,120]
[400249267,1767217850109,-178.8674121,0.000329,120]
[400249268,1767217850119,-220.84246738,0.000329,120]
[400249269,1767217850128,-193.78459303,0.000329,120]
[400249270,1767217850137,-260.78391882,0.000329,120]
[400249271,1767217850147,-161.01318651,0.000329,120]
[400249272,1767217850156,-198.07485528,0.000329,120]
[400249273,1767217850165,-1430.86618739,0.000329,120]
[400249274,1767217850174,-162.37843672,0.000329,120]
[400249275,1767217850184,-183.49170094,0.000329,120]
[400249276,1767217850194,-152.26504483,0.000329,2]
[400249277,1767217850203,-12931.52053187,0.00033,120]
[400249278,1767217850212,-126799.84228777,0.00033,20]
[400249279,1767217850222,-1041.66666667,0.00033,120]
[400249280,1767217850231,-153.327647,0.00033,31]
[400249281,1767217850240,-151.0,0.00033,31]
[400249282,1767217850250,-151.0,0.00033,31]
[400249283,1767217850259,-151.0,0.00033,31]
[400249284,1767217850269,-151.0,0.00033,31]
[400249285,1767217850278,-151.0,0.00033,31]
[400249286,1767217850287,-153.768566,0.00033,31]
[400249287,1767217850297,-151.0,0.00033,31]
[400249288,1767217850306,-151.0,0.00033,31]
[400249289,1767217850315,-151.0,0.00033,31]
[400249290,1767217850325,-151.0,0.00033,31]
[400249291,1767217850334,-151.0,0.00033,31]
[400249292,1767217850343,-151.0,0.00033,31]
[400249293,1767217850353,-198.827398,0.00033,31]
[400249294,1767217850362,-151.0,0.00033,31]
[400249295,1767217850371,-163.988889,0.00033,31]
[400249296,1767217850381,-163.988889,0.00033,31]
[400249297,1767217850390,-163.988889,0.00033,31]
[400249298,1767217850400,-163.988889,0.00033,31]
[400249299,1767217850409,-151.0,0.00033,31]
[400249300,1767217850418,-151.0,0.00033,31]
[400249301,1767217850427,-151.0,0.00033,31]
[400249302,1767217850436,-301.76576,0.00033,31]
[400249303,1767217850445,-151.0,0.00033,31]
[400249304,1767217850455,-158.892051,0.00033,31]
[400249305,1767217850464,-151.0,0.00033,31]
[400249306,1767217850474,-158.892051,0.00033,31]
[400249307,1767217850483,-158.892051,0.00033,31]
[400249308,1767217850493,-158.892051,0.00033,31]
[400249309,1767217850503,-151.0,0.00033,31]
[400249310,1767217850512,-151.0,0.00033,31]
[400249311,1767217850521,-151.0,0.00033,31]
[400249312,1767217850531,-151.0,0.00033,31]
[400249313,1767217850540,-151.0,0.00033,31]
[400249314,1767217850549,-151.0,0.00033,31]
[400249315,1767217850558,-151.0,0.00033,31]
[400249316,1767217850567,-169.466222,0.00033,31]
[400249317,1767217850576,-169.466222,0.00033,31]
[400249318,1767217850586,-169.466222,0.00033,31]
[400249319,1767217850596,-169.466222,0.00033,31]
[400249320,1767217850606,-151.0,0.00033,31]
[400249321,1767217850614,-151.0,0.00033,31]
[400249322,1767217850624,-151.0,0.00033,31]
[400249323,1767217850633,-151.0,0.00033,31]
[400249324,1767217850643,-323.507289,0.00033,31]
[400249325,1767217850652,-323.507289,0.00033,31]
[400249326,1767217850661,-323.507289,0.00033,31]
[400249327,1767217850671,-389.397028,0.00033,31]
[400249328,1767217850680,-323.507289,0.00033,31]
[400249329,1767217850689,-389.397028,0.00033,31]
[400249330,1767217850699,-389.397028,0.00033,31]
[400249331,1767217850708,-389.397028,0.00033,31]
[400249332,1767217850718,-372.889096,0.00033,31]
[400249333,1767217850727,-372.889096,0.00033,31]
[400249334,1767217850737,-372.889096,0.00033,31]
[400249335,1767217850746,-372.889096,0.00033,31]
[400249336,1767217850756,-1264.830438,0.00033,31]
[400249337,1767217850766,-151.0,0.00033,31]
[400249338,1767217850775,-1264.830438,0.00033,31]
[400249339,1767217850785,-1264.830438,0.00033,31]
[400249340,1767217850794,-579.465896,0.00033,31]
[400249341,1767217850803,-1264.830438,0.00033,31]
[400249342,1767217850812,-579.465896,0.00033,31]
[400249343,1767217850822,-579.465896,0.00033,31]
[400249344,1767217850831,-579.465896,0.00033,31]
[400249345,1767217850840,-351.462962,0.00033,31]
[400249346,1767217850850,-351.462962,0.00033,31]
[400249347,1767217850859,-351.462962,0.00033,31]
[400249348,1767217850869,-351.462962,0.00033,31]
[400249349,1767217850878,-151.0,0.00033,31]
[400249350,1767217850888,-177.291107,0.00033,7]
[400249351,1767217850900,-465.090216,0.00033,31]
[400249352,1767217850910,-367.945551,0.00033,31]
[400249353,1767217850920,-465.090216,0.00033,31]
[400249354,1767217850930,-367.945551,0.00033,31]
[400249355,1767217850939,-293.104127,0.00033,31]
[400249356,1767217850949,-465.090216,0.00033,31]
[400249357,1767217850959,-367.945551,0.00033,31]
[400249358,1767217850969,-293.104127,0.00033,31]
[400249359,1767217850980,-465.090216,0.00033,31]
[400249360,1767217850990,-367.945551,0.00033,31]
[400249361,1767217850999,-293.104127,0.00033,31]
[400249362,1767217851009,-293.104127,0.00033,31]
[400249363,1767217851019,-151.0,0.00033,31]
[400249364,1767217851028,-177.644782,0.00033,31]
[400249365,1767217851037,-151.0,0.00033,31]
[400249366,1767217851046,-151.0,0.00033,31]
[400249367,1767217851055,-151.0,0.00033,31]
[400249368,1767217851156,-300.511634,0.00033,31]
[400249369,1767217851166,-394.521351,0.00033,31]
[400249370,1767217851175,-429.596572,0.00033,31]
[400249371,1767217851185,-394.521351,0.00033,31]
[400249372,1767217851194,-429.596572,0.00033,31]
[400249373,1767217851204,-394.521351,0.00033,31]
[400249374,1767217851213,-429.596572,0.00033,31]
[400249375,1767217851223,-394.521351,0.00033,31]
[400249376,1767217851232,-429.596572,0.00033,31]
[400249377,1767217851241,-1017.21903832,0.00033,7]
[400249378,1767217851250,-151.0,0.00033,31]
[400249379,1767217851260,-151.0,0.00033,31]
[400249380,1767217851270,-754.40778,0.00033,31]
[400249381,1767217851279,-151.0,0.00033,31]
[400249382,1767217851289,-754.40778,0.00033,31]
[400249383,1767217851298,-754.40778,0.00033,31]
[400249384,1767217851307,-754.40778,0.00033,31]
[400249385,1767217851316,-3147.76375777,0.00033016,2]
[400249386,1767217851326,-303.4572356,0.00033068,30]
[400249387,1767217851335,-5000.0,0.00033121,2]
[400249388,1767217851344,-5000.0,0.0003313,38]
[400249389,1767217851353,-5000.0,0.0003313,42]
[400249390,1767217851362,-5000.0,0.0003313,43]
[400249391,1767217851371,-5000.0,0.0003313,39]
[400249392,1767217851380,-151.0,0.00033149,31]
[400249393,1767217851389,-151.0,0.00033149,31]
[400249394,1767217851398,-151.0,0.00033149,31]
[400249395,1767217851408,-916.36,0.0003315,34]
[400249396,1767217851417,-887.30342,0.00033165,2]
[400249397,1767217851427,-179.95097547,0.000332,117]
[400249398,1767217851436,-2863.2521,0.0003322,30]
[400249399,1767217851446,-369.0,0.00033226,30]
[400249400,1767217851455,-827.96,0.000333,30]
[400249401,1767217851464,-176.03,0.000333,7]
[400249402,1767217851474,-376.3998898,0.0003337,30]
[400249403,1767217851484,-376.3998898,0.0003337,30]
[400249404,1767217851493,-376.3998898,0.0003337,30]
[400249405,1767217851503,-376.3998898,0.0003337,30]
[400249406,1767217851512,-376.3998898,0.0003337,30]
[400249407,1767217851521,-376.3998898,0.0003337,30]
[400249408,1767217851531,-376.3998898,0.0003337,30]
[400249409,1767217851540,-376.3998898,0.0003337,30]
[400249410,1767217851550,-376.3998898,0.0003337,30]
[400249411,1767217851559,-376.3998898,0.0003337,30]
[400249412,1767217851569,-376.3998898,0.0003337,30]
[400249413,1767217851579,-376.3998898,0.0003337,30]
[400249414,1767217851588,-376.3998898,0.0003337,30]
[400249415,1767217851599,-1004.98248976,0.00033425,5]
[400249416,1767217851608,-160.0,0.00033582,10]
[400249417,1767217851618,-8423.69,0.000336,14]
[400249418,1767217851628,-451.72851541,0.00033674,120]
[400249419,1767217851637,-197.835449,0.00033697,31]
[400249420,1767217851647,-197.835449,0.00033697,31]
[400249421,1767217851656,-197.835449,0.00033697,31]
[400249422,1767217851666,-197.835449,0.00033697,31]
[400249423,1767217851676,-197.239144,0.00033697,7]
[400249424,1767217851685,-151.0,0.00033697,28]
[400249425,1767217851695,-151.0,0.00033697,31]
[400249426,1767217851704,-174.021313,0.00033697,31]
[400249427,1767217851714,-151.0,0.00033697,31]
[400249428,1767217851724,-174.021313,0.00033697,31]
[400249429,1767217851733,-174.021313,0.00033697,31]